bitfinex/quotes_ETHUSD_20220202
["timestamp","ask_amount","ask_price","bid_price","bid_amount"]
[1643823950264,0.1919,2675.4,2674.2,0.449]
[1643823950861,0.1869,2675.8,2675.0,0.20079118]
[1643823952002,0.00547193,2675.5,2675.0,0.20079118]
[1643823952808,0.00815912,2675.5,2674.7,0.1867]
[1643823953002,0.00268719,2675.5,2674.7,0.1867]
[1643823953202,0.19237206,2675.4,2674.6,0.00547373]
[1643823953403,0.19237206,2675.4,2674.7,0.1869]
[1643823953605,4.85,2675.3,2674.7,0.1869]
[1643823953803,0.00547206,2675.4,2675.0,0.1439148]
[1643823953804,0.005,2675.2,2675.0,0.1439148]
[1643823954004,0.005,2675.2,2674.9,0.78423741]
[1643823954005,0.00268719,2675.2,2674.9,0.78423741]
[1643823954204,0.00268719,2675.2,2674.9,0.1615945]
[1643823954404,0.00268719,2675.2,2674.3,0.1869]
[1643823954604,0.1869,2675.4,2674.3,0.1869]
[1643823954605,0.00268719,2675.3,2674.3,0.1869]
[1643823955256,0.1919,2675.4,2674.5,0.15745156]
[1643823955653,0.1869,2675.4,2674.5,0.15745156]
[1643823955854,0.00268719,2675.3,2674.5,0.15745156]
[1643823956259,2.15,2675.2,2673.9,0.38424607]
[1643823956457,2.15,2675.2,2674.0,0.449]
[1643823956656,2.15,2675.2,2674.0,0.749]
[1643823956857,0.00547235,2675.0,2674.5,0.69351193]
[1643823957063,0.00547235,2675.0,2674.6,0.1869]
[1643823957963,2.12085962,2675.2,2674.6,0.1869]
[1643823958160,0.00268759,2675.1,2674.6,0.1869]
[1643823958359,0.03192717,2674.9,2674.6,0.87578073]
[1643823959098,0.03192717,2674.9,2674.6,0.68888073]
[1643823961606,0.03192717,2674.9,2674.6,0.69435375]
[1643823962203,0.1869,2675.6,2674.7,5.65]
[1643823962471,0.1869,2675.6,2674.8,0.1869]
[1643823962657,0.00268759,2675.5,2674.8,1.94543873]
[1643823962858,0.00268759,2675.5,2675.1,0.01251721]
[1643823963058,0.00268759,2675.5,2675.3,0.7050597]
[1643823963260,0.02188318,2675.7,2675.3,1.4540597]
[1643823963858,0.1867,2676.5,2675.6,0.1951392]
[1643823964059,1.5853228,2676.4,2675.3,1.4540597]
[1643823964260,0.1867,2676.3,2675.3,1.4540597]
[1643823964461,1.5853228,2676.2,2675.3,1.4540597]
[1643823964660,0.1867,2676.1,2675.3,1.4540597]
[1643823965063,0.1867,2676.5,2676.0,0.81264734]
[1643823965261,5.63519686,2676.4,2675.8,0.67395905]
[1643823965463,0.1867,2676.3,2675.8,0.67395905]
[1643823966064,0.1867,2676.3,2675.8,0.86864415]
[1643823966306,1.58521216,2676.2,2675.3,0.3]
[1643823966507,0.1867,2676.1,2675.4,0.1867]
[1643823966706,0.1867,2676.1,2675.2,0.9357]
[1643823967107,0.1867,2676.1,2675.8,0.17864503]
[1643823967709,0.1367,2676.1,2675.8,0.17864503]
[1643823968710,1.04318689,2675.4,2675.3,1.01215498]
[1643823968911,1.04318689,2675.4,2675.3,1.46115498]
[1643823969210,1.04318689,2675.4,2675.3,1.64785498]
[1643823969952,1.04318689,2675.4,2675.3,1.51914778]
[1643823972457,1.04318689,2675.4,2675.3,1.70594778]
[1643823972653,1.04865886,2676.3,2675.4,5.65]
[1643823972859,1.0803518,2677.1,2675.8,0.01242108]
[1643823973055,1.0803518,2677.1,2675.9,0.449]
[1643823973056,0.1868,2676.5,2675.9,0.449]
[1643823973255,1.58475973,2677.0,2675.9,0.449]
[1643823973256,0.1867,2676.9,2675.9,0.6357]
[1643823973454,1.58476636,2676.8,2675.9,0.449]
[1643823973709,0.1867,2676.7,2676.5,0.17512362]
[1643823973908,0.0026863,2676.7,2676.6,0.6856292]
[1643823974106,0.0026863,2676.7,2676.2,0.45317422]
[1643823974506,0.1867,2676.8,2676.2,0.45317422]
[1643823974707,1.58473236,2676.7,2676.3,2.0]
[1643823974906,0.1867,2676.8,2676.4,0.449]
[1643823974907,0.00547105,2676.6,2676.4,0.449]
[1643823975907,1.0803518,2677.1,2676.5,1.10256327]
[1643823976108,1.38097284,2677.0,2676.6,0.449]
[1643823976312,0.02188075,2677.0,2676.6,0.449]
[1643823977108,1.0803518,2677.1,2676.6,0.449]
[1643823977309,0.69048198,2677.0,2676.6,0.449]
[1643823979469,0.69048198,2676.8,2676.6,0.449]
[1643823979668,0.69595274,2676.9,2676.6,0.449]
[1643823980474,0.69048198,2676.7,2676.6,0.449]
[1643823980670,0.9403304,2677.0,2676.6,0.449]
[1643823980671,0.69048198,2676.8,2676.6,0.449]
[1643823980871,0.9458012,2676.9,2676.6,0.449]
[1643823981077,0.9403304,2676.8,2676.6,0.449]
[1643823981512,0.9458012,2676.9,2676.6,0.449]
[1643823981711,0.70277596,2676.7,2676.6,0.449]
[1643823981908,0.9403304,2676.9,2676.6,0.449]
[1643823982108,0.00547084,2676.8,2676.6,0.449]
[1643823982308,0.9403304,2676.7,2676.6,0.449]
[1643823982507,0.94580124,2676.8,2676.6,0.449]
[1643823982708,0.9403304,2676.7,2676.6,0.449]
[1643823982914,0.00547084,2676.8,2676.1,0.19217231]
[1643823983111,0.70390211,2676.2,2675.8,0.1867]
[1643823983308,0.93853614,2676.4,2676.1,0.00547231]
[1643823983709,0.93853614,2676.4,2675.8,0.1867]
[1643823983909,1.41043352,2676.6,2675.0,10.5047]
[1643823983910,0.70495659,2676.0,2675.6,0.1867]
[1643823984115,0.70495659,2676.0,2674.7,1.2213]
[1643823984116,0.93853614,2675.8,2675.1,0.1868]
[1643823984311,0.70510974,2675.4,2674.8,0.1867]
[1643823984510,0.70510974,2675.4,2674.5,0.57114607]
[1643823984511,0.00569052,2675.4,2674.5,0.57114607]
[1643823984708,0.00569052,2675.4,2674.5,0.38424607]
[1643823984964,0.00569052,2675.4,2674.7,0.80250978]
[1643823985163,0.00837682,2675.4,2674.8,0.1869]
[1643823985362,0.0026863,2675.4,2674.8,0.1869]
[1643823985864,0.0026863,2675.4,2674.9,0.17931419]
[1643823986068,0.0026863,2675.7,2674.9,0.17931419]
[1643823986263,0.0026863,2675.7,2675.0,0.449]
[1643823986673,0.0026863,2675.8,2675.0,0.449]
[1643823986863,0.70779604,2675.8,2675.2,0.00224625]
[1643823987264,0.70510974,2675.7,2675.2,0.00224625]
[1643823987465,0.0026863,2675.6,2675.2,0.00224625]
[1643823987863,0.0026863,2675.6,2675.2,0.81277027]
[1643823988164,0.0026863,2675.7,2675.3,0.00547243]
[1643823988564,0.70779604,2675.8,2675.3,0.00547243]
[1643823989010,0.0026863,2675.8,2675.2,1.11052402]
[1643823989212,0.70779604,2675.8,2675.2,1.11052402]
[1643823989408,0.70510974,2675.9,2675.4,0.00547235]
[1643823989807,0.70510974,2675.9,2675.0,1.449]
[1643823989808,0.70510974,2675.8,2675.0,0.06087287]
[1643823990013,0.0026863,2675.8,2675.1,0.79361271]
[1643823991008,0.0026863,2675.8,2675.2,0.449]
[1643823991210,0.70779604,2675.8,2675.2,0.449]
[1643823991410,0.70510974,2675.8,2675.2,0.449]
[1643823991814,0.70510974,2675.8,2675.3,0.00207789]
[1643823992011,0.0026863,2675.7,2675.3,0.00207789]
[1643823992211,0.0026863,2675.7,2675.4,0.90112789]
[1643823992461,0.0026863,2675.7,2675.3,0.30207789]
[1643823992661,0.0026863,2675.8,2675.3,0.30207789]
[1643823992858,0.0026863,2675.8,2675.4,0.17985832]
[1643823993061,0.0026863,2675.8,2675.3,0.30530847]
[1643823993259,0.00530725,2675.9,2675.3,0.00530847]
[1643823993859,0.00799355,2675.9,2675.3,0.00530847]
[1643823994059,0.01330086,2675.9,2675.3,0.01061701]
[1643823994362,0.00799361,2675.9,2675.3,0.00530854]
[1643823995161,0.0026863,2675.9,2675.2,1.63029035]
[1643823995359,0.00797345,2675.9,2675.3,0.00528837]
[1643823995861,0.71308319,2675.9,2675.3,0.00528837]
[1643823996066,0.70510974,2675.8,2675.3,0.00528837]
[1643823996311,0.89180974,2675.8,2674.9,0.38424607]
[1643823996510,0.89180974,2675.8,2675.3,0.00528837]
[1643823996511,2.29297461,2675.7,2675.3,0.00528837]
[1643823997107,1.58517857,2675.6,2675.3,0.00528837]
[1643823997307,1.58517857,2675.5,2675.3,0.00528837]
[1643823997512,1.58517857,2675.4,2674.9,1.55856117]
[1643823997707,1.58517857,2675.3,2674.9,1.55856117]
[1643823997907,1.58517857,2675.2,2674.9,1.55856117]
[1643823998107,0.70779604,2675.8,2674.9,1.55856117]
[1643823998308,2.29297511,2675.8,2674.9,1.55856117]
[1643823998707,2.29297511,2675.8,2674.9,0.68424607]
[1643823998909,1.58517907,2675.7,2675.2,0.00546738]
[1643823999108,1.58786537,2675.6,2675.2,0.00546738]
[1643823999310,1.58517907,2675.5,2675.2,0.00546738]
[1643823999512,1.58517907,2675.4,2675.2,0.00546738]
[1643823999709,0.0026863,2675.7,2675.2,0.00546738]
[1643823999967,0.0026863,2675.7,2674.9,1.52588804]
[1643824000155,0.0026863,2675.7,2675.2,0.00546738]
[1643824000856,2.29297511,2675.7,2675.2,0.00546738]
[1643824001056,1.58517907,2675.6,2674.9,0.68424607]
[1643824001256,1.58517907,2675.5,2675.0,0.15319974]
[1643824001459,1.58517907,2675.4,2675.3,0.0054674]
[1643824001856,1.58786537,2675.5,2675.3,0.0054674]
[1643824002063,1.58517907,2675.4,2675.3,0.0054674]
[1643824002257,2.29297511,2675.6,2675.3,0.0054674]
[1643824002457,1.58517907,2675.5,2675.3,0.01093987]
[1643824002657,1.58517907,2675.4,2675.3,0.00547247]
[1643824003159,0.70779604,2675.6,2675.3,0.00547247]
[1643824003558,0.70779604,2675.6,2674.9,0.68424607]
[1643824003804,0.70779604,2675.6,2675.2,0.00547252]
[1643824003805,2.29297511,2675.6,2675.2,0.00547252]
[1643824004009,1.58517907,2675.5,2675.2,0.00547252]
[1643824004305,1.58517907,2675.4,2675.2,0.00547252]
[1643824004506,1.58517907,2675.3,2675.2,0.00547252]
[1643824004709,0.0026863,2675.6,2675.0,0.18584098]
[1643824004710,0.70779604,2675.6,2675.0,0.18584098]
[1643824004906,0.0026863,2675.4,2675.2,0.00547252]
[1643824005108,1.58786537,2675.4,2675.2,0.00547252]
[1643824005406,1.58516584,2675.3,2675.2,0.00547252]
[1643824005605,0.70510974,2675.5,2675.2,0.00547252]
[1643824005805,0.70510974,2675.5,2674.9,0.68424607]
[1643824006208,0.0026863,2675.4,2675.1,0.00530842]
[1643824006608,1.58785214,2675.4,2675.1,0.00530842]
[1643824006909,1.58516584,2675.3,2675.1,0.00530842]
[1643824007109,1.58516584,2675.2,2675.1,0.00530842]
[1643824007955,1.58785214,2675.5,2675.1,0.00530842]
[1643824008154,1.58516584,2675.4,2675.1,0.00530842]
[1643824008354,1.58516584,2675.3,2674.9,0.68424607]
[1643824008553,1.58516584,2675.2,2675.0,0.004841]
[1643824008854,0.0026863,2675.7,2675.1,0.449]
[1643824009054,0.1867,2675.8,2675.1,0.3]
[1643824009252,1.58495159,2675.7,2675.2,1.44824249]
[1643824009453,0.36866057,2675.9,2675.4,2.6]
[1643824009656,0.00500388,2675.9,2675.5,0.7197523]
[1643824009861,0.00769074,2675.9,2675.5,2.0197523]
[1643824010055,0.00769074,2675.9,2675.6,6.732]
[1643824010253,0.00769074,2675.9,2675.8,0.38424607]
[1643824010458,0.00769074,2675.9,2675.8,6.99167503]
[1643824010459,0.00500388,2675.9,2675.8,6.99167503]
[1643824010655,0.00268686,2676.5,2675.8,13.72367503]
[1643824010856,0.00268686,2676.5,2676.0,0.9341]
[1643824011060,0.02001341,2676.4,2676.1,0.539]
[1643824011305,0.02001341,2676.4,2676.0,0.28091759]
[1643824011505,0.02001341,2676.4,2676.3,0.84141351]
[1643824011705,0.02001341,2676.4,2676.3,1.38041351]
[1643824011906,0.00268686,2676.8,2676.3,1.68041351]
[1643824012106,0.20858175,2676.7,2676.3,1.68041351]
[1643824012508,0.02188175,2676.7,2676.3,1.68041351]
[1643824012904,0.02188175,2676.7,2676.3,0.839]
[1643824013105,0.93853614,2676.7,2676.3,0.839]
[1643824013307,0.00547101,2676.6,2676.3,0.839]
[1643824014208,1.12523614,2676.9,2676.3,0.839]
[1643824014408,0.93853614,2676.9,2676.3,0.839]
[1643824014608,0.00547105,2676.6,2676.3,1.73292607]
[1643824015459,0.1867,2676.8,2676.3,1.73292607]
[1643824015858,0.00547105,2676.6,2676.3,1.73292607]
[1643824016460,0.00547105,2676.6,2676.3,1.81210129]
[1643824016658,0.00547105,2676.6,2676.3,1.99880129]
[1643824016858,0.00323419,2676.6,2676.5,6.732]
[1643824017059,0.00323419,2676.6,2676.5,7.7577]
[1643824017458,0.00323419,2676.6,2676.5,8.14194607]
[1643824017662,0.00323419,2676.6,2676.5,5.90994607]
[1643824017862,2.01888794,2677.1,2676.5,5.90994607]
[1643824018060,1.0803518,2677.1,2676.5,5.72324607]
[1643824018259,0.00323996,2676.7,2676.5,5.72324607]
[1643824018706,0.00323996,2676.7,2676.5,5.339]
[1643824019107,0.88853614,2677.0,2676.5,5.339]
[1643824019308,0.00323996,2676.7,2676.5,5.339]
[1643824019809,0.00323996,2676.7,2676.1,1.47145065]
[1643824019810,0.71135989,2676.7,2676.1,0.1867]
[1643824020009,0.70811993,2676.6,2675.9,0.1867]
[1643824020211,0.00268638,2676.5,2675.9,0.1867]
[1643824020609,0.00816324,2676.5,2675.9,0.1867]
[1643824020810,0.00816324,2676.5,2676.0,0.96044589]
[1643824021209,0.01723518,2676.9,2676.0,1.26044589]
[1643824021612,0.1867,2677.0,2676.0,1.26044589]
[1643824022111,1.59713352,2677.0,2676.0,1.26044589]
[1643824022554,2.44060076,2677.0,2676.0,1.26044589]
[1643824022955,2.44373352,2677.0,2676.0,1.26044589]
[1643824023453,4.54524358,2677.0,2676.0,0.3]
[1643824023658,1.41043352,2676.9,2675.8,0.1867]
[1643824023853,2.70947039,2676.8,2675.5,0.1867]
[1643824024054,4.11990391,2676.8,2675.4,3.5949]
[1643824024658,4.11990391,2676.8,2675.7,0.88192773]
[1643824024855,2.70947039,2676.8,2675.7,0.88192773]
[1643824025055,2.70947039,2676.8,2675.7,1.18192773]
[1643824025455,2.70947039,2676.8,2676.1,0.00537656]
[1643824026057,4.11990391,2676.8,2676.1,0.00537656]
[1643824026304,4.11990391,2676.8,2675.7,0.88192773]
[1643824026704,4.11990391,2676.8,2676.3,0.00547736]
[1643824026904,0.69968366,2676.5,2676.3,0.00547736]
[1643824027105,3.6367,2676.4,2676.3,0.00547736]
[1643824027505,3.6367,2676.4,2675.7,0.88192773]
[1643824027708,3.45,2676.4,2676.2,0.00547745]
[1643824028806,3.45,2676.4,2675.4,3.5949]
[1643824029006,3.45,2676.4,2676.2,0.00547749]
[1643824029505,3.9346321,2676.3,2676.2,0.00547749]
[1643824029958,3.9346321,2676.3,2675.7,0.70492669]
[1643824030161,1.5846321,2676.2,2676.1,0.00516911]
[1643824031163,2.29283562,2676.2,2675.4,1.10652206]
[1643824031366,1.5846321,2676.1,2676.0,0.00516919]
[1643824031762,0.70820352,2676.2,2676.0,0.00516919]
[1643824032564,0.70820352,2676.2,2676.0,0.00516923]
[1643824033169,2.29283562,2676.1,2676.0,0.00516923]
[1643824033364,0.70820352,2676.2,2676.0,0.00516923]
[1643824033565,2.29283562,2676.1,2675.5,0.1867]
[1643824033820,1.5846321,2676.0,2675.5,0.1867]
[1643824034017,1.5846321,2675.9,2675.5,0.1867]
[1643824034217,1.5846321,2675.8,2675.5,0.1867]
[1643824034415,1.5846321,2675.7,2675.5,0.1867]
[1643824034616,1.5846321,2675.6,2675.5,0.1867]
[1643824035016,2.29283562,2676.2,2675.5,0.19131196]
[1643824035216,1.5846321,2676.1,2675.5,0.19131196]
[1643824035415,1.5846321,2676.0,2675.5,0.19131196]
[1643824035616,1.5846321,2675.9,2675.5,0.19131196]
[1643824035821,2.29283562,2676.2,2675.5,0.19131196]
[1643824036016,2.29283562,2676.2,2675.5,1.10394374]
[1643824036215,2.29283562,2676.2,2675.6,0.00461189]
[1643824036416,1.5846321,2676.1,2675.6,0.00461189]
[1643824036617,1.5846321,2676.0,2675.6,0.00461189]
[1643824036816,1.5846321,2675.9,2675.6,0.00461189]
[1643824037017,0.70820352,2676.2,2675.6,0.00461189]
[1643824037018,1.5846321,2675.8,2675.6,0.00461189]
[1643824037216,1.5846321,2675.7,2675.6,0.1676843]
[1643824037454,0.70820352,2676.2,2675.7,0.00547791]
[1643824038656,0.70820352,2676.2,2675.8,0.00547778]
[1643824039458,1.58460765,2676.1,2675.8,0.00547778]
[1643824039663,1.58460765,2676.0,2675.8,0.00547778]
[1643824039858,0.70820352,2676.4,2675.9,0.00547774]
[1643824040260,1.58451391,2676.3,2676.2,0.17770997]
[1643824040460,9.13522725,2676.7,2676.2,0.17770997]
[1643824040461,1.58451391,2676.4,2676.2,0.17770997]
[1643824040660,1.58451391,2676.3,2676.2,0.17770997]
[1643824041062,2.29271743,2676.7,2676.2,0.17770997]
[1643824041310,1.58451391,2676.6,2676.2,0.17770997]
[1643824041516,1.58451391,2676.5,2676.1,0.00493911]
[1643824041715,1.58451391,2676.4,2676.1,0.00493911]
[1643824041913,1.58451391,2676.3,2676.1,0.00493911]
[1643824042113,1.58451391,2676.2,2676.1,0.00493911]
[1643824042315,1.58451391,2676.2,2676.0,1.21169319]
[1643824042513,0.70820352,2676.6,2676.0,1.21169319]
[1643824043516,0.70820352,2676.6,2676.2,0.00493907]
[1643824043721,2.29271743,2676.5,2676.2,0.00493907]
[1643824043920,1.58451391,2676.4,2676.2,0.00493907]
[1643824044117,1.58451391,2676.3,2676.2,0.00493907]
[1643824044319,1.58451391,2676.3,2676.0,1.21169319]
[1643824044519,1.58451391,2676.2,2676.0,1.21169319]
[1643824044819,1.58451391,2676.2,2675.8,0.1867]
[1643824044820,1.58451391,2676.1,2675.8,0.1867]
[1643824045068,1.58451391,2676.0,2675.6,0.1867]
[1643824045367,1.58451391,2675.9,2675.6,0.1867]
[1643824045567,0.70820352,2676.4,2675.6,0.1867]
[1643824045568,1.58451391,2675.8,2675.6,0.1867]
[1643824045869,1.58451391,2675.7,2675.6,1.38854814]
[1643824046370,2.29271743,2676.3,2675.6,1.38854814]
[1643824046568,1.58451391,2676.2,2675.6,1.38854814]
[1643824046767,1.58451391,2676.1,2675.6,1.38854814]
[1643824046969,1.58451391,2676.0,2675.6,1.38854814]
[1643824047166,1.58451391,2675.9,2675.6,1.38854814]
[1643824047367,1.58451391,2675.8,2675.6,1.38854814]
[1643824047567,0.1867,2676.7,2675.6,1.38854814]
[1643824047568,1.58451391,2675.7,2675.6,1.38854814]
[1643824047969,0.70510352,2676.4,2675.6,1.38854814]
[1643824048568,1.58451391,2676.3,2675.6,1.38854814]
[1643824048813,1.58451391,2676.2,2675.6,1.38854814]
[1643824049013,1.58451391,2676.1,2675.6,1.38854814]
[1643824049307,1.58451391,2676.0,2675.6,1.38854814]
[1643824049507,1.58451391,2675.9,2675.6,1.20184814]
[1643824049708,1.13082725,2676.6,2675.8,0.0054834]
[1643824049908,1.58444568,2676.5,2675.8,0.0054834]
[1643824050310,1.58444568,2676.5,2675.6,3.17294869]
[1643824050609,1.58444568,2676.5,2676.0,0.00548323]
[1643824050809,1.58444568,2676.5,2676.1,0.70336059]
[1643824051308,1.58444568,2676.5,2675.6,3.23256621]
[1643824051710,1.58444568,2676.4,2676.0,0.17882309]
[1643824051909,0.1867,2676.7,2676.2,0.00538205]
[1643824051910,1.58444568,2676.3,2676.2,0.00538205]
[1643824052210,1.58444568,2676.3,2676.2,0.73710118]
[1643824052463,0.1867,2676.7,2676.2,5.69254978]
[1643824052464,1.58444568,2676.6,2676.2,5.69254978]
[1643824052661,0.0053803,2677.0,2676.2,5.69254978]
[1643824052662,1.58444568,2676.5,2676.2,4.16034725]
[1643824052858,0.0053803,2677.0,2676.3,1.1867]
[1643824053059,0.0053803,2677.0,2676.8,0.18025359]
[1643824053060,1.58401197,2676.9,2676.8,0.18025359]
[1643824053258,1.58401197,2676.9,2676.8,0.71899095]
[1643824053462,11.13623352,2677.7,2677.0,4.2]
[1643824053463,0.94412725,2677.7,2677.0,4.2]
[1643824053661,0.1867,2678.1,2677.1,2.0]
[1643824053859,1.92744095,2678.8,2677.5,0.0127016]
[1643824053860,0.94412725,2678.3,2677.5,0.0127016]
[1643824054059,1.59713352,2678.6,2677.6,4.34105668]
[1643824054060,0.1867,2678.6,2677.6,4.34105668]
[1643824054261,1.41043352,2678.8,2677.6,11.91205668]
[1643824054262,0.00268756,2678.2,2677.6,11.91205668]
[1643824054475,0.00268756,2678.2,2677.8,0.95815911]
[1643824054659,0.00268756,2678.2,2677.9,1.66350312]
[1643824054860,0.04320018,2678.7,2677.9,1.73006312]
[1643824054861,0.04588774,2678.7,2677.9,1.73006312]
[1643824055259,0.04263175,2678.6,2677.9,1.73006312]
[1643824055660,0.01570484,2678.8,2678.5,0.18171052]
[1643824055859,0.01570484,2678.8,2678.6,0.93337]
[1643824056060,0.04320018,2678.7,2678.6,3.7770505]
[1643824056321,0.00268756,2679.0,2678.6,3.7770505]
[1643824056322,0.00268756,2679.0,2678.7,4.44096841]
[1643824056523,0.00268756,2679.0,2678.8,2.539]
[1643824056722,0.00268756,2679.2,2678.9,0.85417919]
[1643824056928,0.00268756,2679.2,2679.0,2.41664401]
[1643824057120,0.00268756,2680.0,2679.0,2.59129788]
[1643824057319,0.1865,2679.9,2679.2,1.86617]
[1643824057521,0.70395171,2679.9,2679.3,0.5479971]
[1643824057720,0.18918756,2680.0,2679.3,0.5479971]
[1643824057721,0.89313927,2680.0,2679.3,0.8479971]
[1643824057920,0.01,2680.2,2679.3,1.7810793]
[1643824057921,0.00268756,2679.8,2679.3,1.7810793]
[1643824058120,0.00268756,2679.8,2679.3,1.9675793]
[1643824058320,0.00268756,2679.8,2679.4,1.1330719]
[1643824058524,0.00268756,2680.1,2679.5,0.92324607]
[1643824058723,0.00268756,2680.1,2679.6,1.86584]
[1643824059020,0.00268756,2680.1,2679.7,0.54332002]
[1643824059220,0.01268756,2680.2,2679.7,0.84332002]
[1643824059820,0.01268756,2680.2,2680.1,0.87823566]
[1643824060076,1.27953936,2680.3,2680.1,0.87823566]
[1643824060269,1.27953936,2680.3,2680.1,1.17823566]
[1643824060469,1.08303936,2680.3,2680.1,1.17823566]
[1643824060670,1.0903518,2680.3,2680.1,1.17823566]
[1643824060873,1.0803518,2680.3,2680.1,1.17823566]
[1643824061067,1.0903518,2680.3,2680.1,1.17823566]
[1643824061268,1.0803518,2680.3,2680.1,1.17823566]
[1643824061470,1.0903518,2680.3,2680.1,1.17823566]
[1643824061668,1.0858837,2680.3,2680.1,1.17823566]
[1643824061868,1.0958837,2680.3,2680.1,1.17823566]
[1643824062268,1.0958837,2680.3,2679.9,0.539]
[1643824062469,1.0958837,2680.3,2679.9,0.3]
[1643824062470,0.01,2680.2,2679.9,0.3]
[1643824062670,0.01,2680.2,2680.0,2.73824178]
[1643824062870,1.0403518,2680.3,2680.1,2.24324903]
[1643824063068,1.0403518,2680.3,2680.0,0.839]
[1643824063069,1.0458837,2680.3,2680.0,0.839]
[1643824063270,1.0458837,2680.3,2680.1,1.03791732]
[1643824063719,1.0458837,2680.3,2680.0,0.539]
[1643824063908,1.0458837,2680.3,2679.6,0.539]
[1643824063909,3.45,2680.2,2679.6,0.539]
[1643824064107,3.45,2680.2,2679.3,0.539]
[1643824064306,3.6365,2680.2,2679.3,0.539]
[1643824064508,0.00268756,2680.1,2679.4,1.86602]
[1643824064907,0.00268756,2680.1,2679.4,3.7319142]
[1643824065107,0.00268756,2680.1,2679.4,1.8658942]
[1643824065308,0.00459455,2679.9,2679.3,0.539]
[1643824065708,0.00459455,2679.9,2679.4,2.0660123]
[1643824066108,0.00459455,2679.9,2679.5,0.82313744]
[1643824066308,0.00268756,2680.0,2679.5,0.82313744]
[1643824066507,0.00459462,2679.8,2679.5,1.12313744]
[1643824066708,0.00459462,2679.8,2679.6,0.16829842]
[1643824067309,0.00268756,2680.1,2679.6,0.16829842]
[1643824067760,0.00459458,2679.8,2679.6,0.16829842]
[1643824068760,0.00268756,2680.1,2679.6,0.16829842]
[1643824068960,0.00553233,2679.8,2679.6,0.16829842]
[1643824069966,0.02268756,2680.2,2679.6,0.16829842]
[1643824070162,0.23131355,2680.2,2680.1,0.19904583]
[1643824070370,0.23131355,2680.2,2679.2,0.1865]
[1643824070371,0.20862599,2680.2,2679.2,0.1865]
[1643824070567,0.20862599,2680.2,2678.9,3.73238]
[1643824070568,0.01203527,2680.0,2679.0,0.1865]
[1643824070768,0.1865,2679.9,2679.0,0.1865]
[1643824070963,0.1865,2679.9,2678.7,0.00553474]
[1643824071212,0.1866,2679.9,2678.7,0.00553474]
[1643824071413,5.65,2679.8,2679.1,0.79270073]
[1643824071618,0.1420325,2679.7,2678.7,0.0055345]
[1643824071813,0.15037706,2679.7,2678.7,0.0055345]
[1643824072208,0.00268756,2679.6,2678.7,0.0055345]
[1643824072407,0.1865,2679.5,2678.2,2.97791]
[1643824072611,0.1865,2679.5,2679.1,0.17947307]
[1643824072809,0.00268756,2679.4,2679.1,0.17947307]
[1643824073009,0.1865,2679.3,2679.1,0.17947307]
[1643824073709,0.01103212,2679.7,2679.1,0.17947307]
[1643824073710,0.1865,2679.6,2679.1,0.17947307]
[1643824073912,0.00268756,2679.5,2679.1,0.17947307]
[1643824074113,0.1865,2679.4,2679.1,0.17947307]
[1643824074610,0.1865,2679.4,2678.8,0.71997703]
[1643824074817,0.00268756,2679.7,2678.8,0.71997703]
[1643824074818,0.1865,2679.6,2678.8,0.71997703]
[1643824075267,0.00268756,2679.5,2678.8,0.71997703]
[1643824075462,0.1865,2679.4,2678.8,0.71997703]
[1643824075763,0.1865,2679.4,2679.0,0.17662222]
[1643824075962,0.00268756,2679.3,2679.0,0.17662222]
[1643824076172,0.00268756,2679.3,2679.0,0.18215562]
[1643824076564,0.00268756,2679.5,2679.0,0.0055334]
[1643824076764,0.1865,2679.4,2679.0,0.0055334]
[1643824076965,0.19888639,2679.4,2679.0,0.0055334]
[1643824077165,0.19888639,2679.4,2678.2,0.97791]
[1643824077464,0.00268756,2679.3,2678.2,0.97791]
[1643824077664,0.1865,2679.2,2679.0,0.15870921]
[1643824077869,0.00553199,2679.7,2679.0,0.15870921]
[1643824077870,0.1865,2679.6,2679.0,0.15870921]
[1643824078065,0.1865,2679.6,2679.0,0.69770921]
[1643824078263,0.1865,2679.6,2679.0,0.15870921]
[1643824078463,0.00268756,2679.5,2679.0,0.15870921]
[1643824078708,0.00268756,2679.5,2679.0,0.15548784]
[1643824078909,0.00268756,2679.5,2679.1,0.8356675]
[1643824079109,0.1865,2679.9,2679.1,0.8356675]
[1643824079312,0.1865,2679.9,2679.1,2.7021401]
[1643824079711,0.00268756,2679.8,2679.2,0.539]
[1643824079910,0.00268756,2679.8,2679.3,0.1865]
[1643824080311,0.02268756,2680.2,2679.3,0.1865]
[1643824080516,0.02268756,2680.2,2680.1,0.90593726]
[1643824080710,0.00268756,2680.2,2680.1,0.90593726]
[1643824080910,1.0603518,2680.3,2680.1,0.90593726]
[1643824081121,1.0603518,2680.3,2680.1,1.20593726]
[1643824081512,1.0603518,2680.3,2680.1,2.22903726]
[1643824081713,1.0603518,2680.3,2680.2,2.35138768]
[1643824081914,1.0603518,2680.3,2680.2,0.69038768]
[1643824081915,0.9903518,2680.3,2680.2,0.69038768]
[1643824082312,0.99572062,2680.3,2680.2,0.69038768]
[1643824082568,0.99572062,2680.3,2680.2,0.15138768]
[1643824083262,0.9903518,2680.3,2680.2,0.15138768]
[1643824084664,0.9903518,2680.3,2680.2,1.62316768]
[1643824085266,0.00536393,2680.4,2680.3,4.85]
[1643824085464,0.00536393,2680.4,2680.3,5.389]
[1643824085668,0.00536393,2680.4,2680.3,5.689]
[1643824085865,0.01038359,2680.4,2680.3,5.689]
[1643824086067,0.00501966,2680.4,2680.3,0.839]
[1643824086517,0.00501966,2680.4,2680.3,2.7042049]
[1643824086914,0.00268756,2681.1,2680.6,0.93258]
[1643824087112,0.00268756,2681.1,2680.7,0.539]
[1643824087113,0.02007532,2680.9,2680.7,0.539]
[1643824087315,0.02007532,2680.9,2680.7,0.54404576]
[1643824087913,0.00268756,2681.6,2680.9,3.0]
[1643824088115,1.51955476,2681.6,2681.2,0.9323945]
[1643824088321,0.02,2681.5,2681.2,0.9323945]
[1643824088515,0.01907339,2681.3,2681.2,0.9323945]
[1643824089417,0.15816095,2682.2,2682.1,0.88405216]
[1643824089617,2.65,2682.1,2681.4,1.72915009]
[1643824089819,1.53768842,2682.0,2681.5,1.4713522]
[1643824090079,1.53768842,2682.0,2681.5,5.42703281]
[1643824090080,1.53768842,2681.9,2681.5,5.42703281]
[1643824090282,0.00268983,2682.1,2681.5,5.42703281]
[1643824090283,0.02,2681.8,2681.5,5.42703281]
[1643824090481,0.00268983,2682.3,2681.5,5.42703281]
[1643824090680,0.00268983,2682.3,2681.6,0.50157467]
[1643824090987,0.00268983,2682.3,2681.9,0.9320166]
[1643824091184,0.2164,2682.5,2682.0,4.76020989]
[1643824091185,0.00268983,2682.5,2682.0,4.76020989]
[1643824091381,0.00268983,2682.5,2682.0,4.57372535]